bitfinex/quotes_SOLUSD_20240621
["timestamp","ask_amount","ask_price","bid_price","bid_amount"]
[1718955812521,0.17,132.39,132.34,16.0769]
[1718955813131,1.63624474,132.4,132.34,16.0769]
[1718955814152,0.17,132.39,132.34,16.0769]
[1718955814349,0.34,132.39,132.34,16.0769]
[1718955815529,0.34,132.39,132.32,6.5144]
[1718955818332,0.34,132.39,132.33,20.0]
[1718955821654,0.34,132.39,132.32,6.5144]
[1718955821836,0.34,132.39,132.31,16.3814]
[1718955822036,45.34,132.39,132.32,20.0]
[1718955823051,45.34,132.39,132.31,16.3814]
[1718955823555,1.63624474,132.38,132.31,16.3814]
[1718955823760,0.34,132.37,132.31,16.3814]
[1718955827539,0.34,132.37,132.27,16.3923]
[1718955827739,45.34,132.37,132.28,20.0]
[1718955828348,1.63624474,132.36,132.28,20.0]
[1718955828538,0.34,132.35,132.28,20.0]
[1718955830471,44.5471,132.35,132.25,6.1918]
[1718955830765,51.1933,132.34,132.25,6.1918]
[1718955830941,0.34,132.33,132.25,6.1918]
[1718955832355,0.34,132.33,132.24,16.5493]
[1718955832557,0.34,132.33,132.25,20.0]
[1718955834566,0.34,132.33,132.22,6.0841]
[1718955834765,28.88,132.32,132.23,20.0]
[1718955834947,60.2722,132.31,132.21,15.091]
[1718955835151,60.4422,132.31,132.21,15.091]
[1718955835964,6.4504,132.3,132.19,0.8278858]
[1718955836169,45.34,132.29,132.19,20.8278858]
[1718955836954,74.22,132.29,132.19,20.8278858]
[1718955839263,15.5199,132.28,132.19,20.8278858]
[1718955839567,28.88,132.26,132.19,0.8278858]
[1718955839769,51.0996,132.25,132.19,0.8278858]
[1718955839972,0.17,132.24,132.19,0.8278858]
[1718955840168,16.1643,132.23,132.19,0.8278858]
[1718955840374,45.34,132.22,132.19,0.8278858]
[1718955841357,0.34,132.22,132.19,0.8278858]
[1718955841764,45.34,132.22,132.19,0.8278858]
[1718955843268,0.34,132.22,132.19,0.8278858]
[1718955843475,16.1643,132.23,132.19,0.8278858]
[1718955844058,6.0996,132.25,132.19,0.8278858]
[1718955845651,0.17,132.24,132.19,0.8278858]
[1718955845846,45.34,132.24,132.19,0.8278858]
[1718955849870,28.88,132.22,132.19,0.8278858]
[1718955850059,45.34,132.21,132.19,0.8278858]
[1718955850368,74.22,132.21,132.19,0.8278858]
[1718955850572,6.0662,132.2,132.19,0.8278858]
[1718955850758,51.4062,132.2,132.19,0.8278858]
[1718955851355,66.7904,132.2,132.19,0.8278858]
[1718955851969,86.7904,132.2,132.19,0.8278858]
[1718955852150,256.1979624,132.2,132.19,0.8278858]
[1718955852353,84.7037812,132.17,132.14,0.8170053]
[1718955852553,130.0437812,132.16,132.14,0.8170053]
[1718955852763,22.4531,132.15,132.1,0.8621265]
[1718955852963,28.88,132.12,132.1,0.3621265]
[1718955853369,0.17,132.11,132.1,0.3621265]
[1718955854278,7.595,132.12,132.1,0.3621265]
[1718955854492,214.7475624,132.11,132.1,0.3621265]
[1718955854652,137.6387812,132.11,132.1,0.3621265]
[1718955854978,130.0437812,132.11,132.0,77.03924898]
[1718955855167,84.7037812,132.09,132.0,77.03924898]
[1718955855368,45.34,132.11,132.0,77.03924898]
[1718955855369,0.34,132.08,132.0,77.03924898]
[1718955855568,84.7037812,132.1,132.0,77.03924898]
[1718955855755,0.17,132.07,132.0,77.03924898]
[1718955856453,45.34,132.07,132.01,20.0]
[1718955856890,51.5951,132.07,132.0,77.03924898]
[1718955857173,169.4075624,132.06,132.0,77.03924898]
[1718955857385,45.17,132.05,132.0,77.03924898]
[1718955857571,45.34,132.05,132.0,77.03924898]
[1718955857879,52.935,132.05,132.0,77.03924898]
[1718955859080,45.34,132.05,132.0,77.03924898]
[1718955859293,7.595,132.04,132.0,77.03924898]
[1718955859500,45.34,132.03,132.0,77.03924898]
[1718955859788,45.0,132.02,132.0,77.03924898]
[1718955860381,51.6451,132.07,132.0,77.03924898]
[1718955860590,20.0,132.06,132.0,77.03924898]
[1718955860764,27.85662117,132.06,132.0,77.03924898]
[1718955860958,1.63712695,132.05,132.0,77.03924898]
[1718955861670,0.34,132.04,132.0,67.03924898]
[1718955861875,1.63800035,132.03,132.0,67.03924898]
[1718955862080,0.34,132.02,132.0,67.03924898]
[1718955862279,9.23300035,132.03,132.0,67.03924898]
[1718955862674,1.63800035,132.03,132.0,67.03924898]
[1718955864082,0.17,132.02,132.0,67.03924898]
[1718955864282,0.34,132.02,132.0,67.03924898]
[1718955865291,1.97800035,132.02,132.0,67.03924898]
[1718955866076,1.80800035,132.02,132.0,67.03924898]
[1718955866389,1.63800035,132.02,132.0,67.03924898]
[1718955867489,0.17,132.01,132.0,67.03924898]
[1718955867873,1.63800035,132.02,132.0,67.03924898]
[1718955869282,21.79020497,132.08,132.0,67.03924898]
[1718955869470,46.91802151,132.06,132.0,67.03924898]
[1718955869672,1.74802151,132.05,132.0,67.03924898]
[1718955869873,0.17,132.04,132.0,67.03924898]
[1718955872676,1.74802151,132.05,132.0,67.03924898]
[1718955872885,0.17,132.04,132.0,67.03924898]
[1718955873776,0.34,132.04,132.0,67.03924898]
[1718955875486,0.34,132.04,132.0,62.95916128]
[1718955877583,1.74778874,132.03,132.0,62.95916128]
[1718955877772,0.34,132.02,132.0,62.95916128]
[1718955877971,47.08778874,132.02,132.0,62.95916128]
[1718955878182,2.08778874,132.02,132.0,62.95916128]
[1718955880488,1.74778874,132.02,132.0,62.95916128]
[1718955885474,0.17,132.01,132.0,62.95916128]
[1718955885669,0.34,132.01,132.0,62.95916128]
[1718955886894,1.74778874,132.02,132.0,62.95916128]
[1718955887476,262.96916679,132.07,132.0,62.95916128]
[1718955887786,1.74778874,132.06,132.0,62.95916128]
[1718955888574,0.34,132.05,132.0,62.95916128]
[1718955888868,1.74778874,132.04,132.0,62.95916128]
[1718955889208,0.34,132.03,132.0,62.95916128]
[1718955889875,1.74778874,132.04,132.0,62.95916128]
[1718955891592,0.34,132.03,132.0,62.95916128]
[1718955896488,1.74778874,132.02,132.0,62.95916128]
[1718955896796,0.34,132.01,132.0,62.95916128]
[1718955900203,0.17,132.01,132.0,62.95916128]
[1718955900589,1.74778874,132.02,132.0,62.95916128]
[1718955900793,0.17,132.01,132.0,62.95916128]
[1718955901603,0.34,132.01,132.0,62.95916128]
[1718955902211,0.34,132.01,132.0,42.95916128]
[1718955902413,0.34,132.01,132.0,18.95916128]
[1718955902695,0.34,132.01,132.0,16.68046405]
[1718955903103,75.34,132.01,132.0,14.40159381]
[1718955903497,75.34,132.01,132.0,12.12272357]
[1718955903889,75.34,132.01,132.0,9.84385333]
[1718955904092,45.34,132.01,132.0,9.84385333]
[1718955904396,45.34,132.01,132.0,7.56498309]
[1718955904599,45.34,132.01,132.0,5.28611285]
[1718955905006,9.59514033,132.02,132.0,5.28611285]
[1718955905314,9.59514033,132.02,132.0,3.00724261]
[1718955905513,9.59514033,132.02,132.0,0.72837237]
[1718955906086,0.17,132.01,132.0,0.72837237]
[1718955906307,45.34,132.01,132.0,0.72837237]
[1718955907001,74.22,132.01,132.0,0.72837237]
[1718955908296,415.31472686,132.01,131.87,0.8170053]
[1718955908595,28.88,131.97,131.87,0.8170053]
[1718955908809,45.34,131.96,131.87,0.8170053]
[1718955910218,32.58224726,131.89,131.79,0.8278858]
[1718955910411,32.75224726,131.88,131.81,15.7008]
[1718955910603,45.17,131.87,131.81,15.7008]
[1718955910788,0.17,131.86,131.81,15.7008]
[1718955911406,34.49980556,131.86,131.81,15.7008]
[1718955911709,45.17,131.85,131.83,1.80380256]
[1718955911896,0.17,131.84,131.81,12.41400256]
[1718955912295,0.17,131.84,131.79,0.8278858]
[1718955912504,45.34,131.84,131.79,0.8278858]
[1718955912694,1.74733015,131.83,131.79,0.8278858]
[1718955912896,0.17,131.82,131.79,0.8278858]
[1718955913100,0.34,131.82,131.79,0.8278858]
[1718955913302,1.74733015,131.83,131.79,0.8278858]
[1718955913905,10.2246956,131.89,131.79,0.8278858]
[1718955914214,9.71618242,131.9,131.8,6.272]
[1718955914391,65.16449452,131.88,131.8,6.272]
[1718955914711,1.74802151,131.87,131.8,6.272]
[1718955915411,32.58224726,131.85,131.8,6.272]
[1718955915610,45.34,131.84,131.8,6.272]
[1718955915917,0.34,131.84,131.8,6.272]
[1718955916095,0.17,131.84,131.8,6.272]
[1718955916294,1.74802151,131.87,131.8,6.272]
[1718955916503,0.34,131.86,131.8,6.272]
[1718955918207,29.22,131.86,131.79,0.8278858]
[1718955918408,45.2931,131.86,131.79,0.8278858]
[1718955918608,30.0,131.82,131.79,0.8278858]
[1718955918816,45.34,131.81,131.79,0.8278858]
[1718955919617,30.0,131.8,131.79,0.8278858]
[1718955919822,75.34,131.8,131.79,0.8278858]
[1718955920231,104.22,131.8,131.7,21.5985]
[1718955920528,103.88,131.8,131.7,21.5985]
[1718955920945,15.6834,131.79,131.7,21.5985]
[1718955921122,30.0,131.78,131.7,21.5985]
[1718955921315,55.3914,131.77,131.68,13.42084639]
[1718955921517,70.07984584,131.77,131.68,13.42084639]
[1718955921732,20.79530892,131.75,131.68,13.42084639]
[1718955922129,30.0,131.73,131.68,13.42084639]
[1718955922426,0.34,131.72,131.68,13.42084639]
[1718955922604,66.13530892,131.72,131.68,13.42084639]
[1718955922810,1.74778874,131.71,131.68,13.42084639]
[1718955923215,30.0,131.7,131.68,13.42084639]
[1718955923430,45.17,131.69,131.68,13.42084639]
[1718955923638,30.0,131.7,131.68,13.42084639]
[1718955924323,20.79530892,131.75,131.68,13.42084639]
[1718955924525,1.74778874,131.74,131.68,13.42084639]
[1718955925213,22.54309766,131.74,131.68,13.42084639]
[1718955925413,20.79530892,131.73,131.68,13.42084639]
[1718955925621,0.17,131.72,131.68,13.42084639]
[1718955925823,1.91778874,131.72,131.68,13.42084639]
[1718955926036,1.74778874,131.72,131.68,13.42084639]
[1718955926530,20.79530892,131.75,131.68,13.42084639]
[1718955926911,41.59061784,131.74,131.68,13.42084639]
[1718955927111,41.59061784,131.75,131.68,13.42084639]
[1718955927312,20.79530892,131.75,131.68,13.42084639]
[1718955927506,41.59061784,131.74,131.68,13.42084639]
[1718955927706,41.76061784,131.73,131.68,13.42084639]
[1718955927907,20.96530892,131.73,131.68,13.42084639]
[1718955928108,41.59061784,131.71,131.68,13.42084639]
[1718955928326,30.0,131.69,131.68,13.42084639]
[1718955928714,30.17,131.69,131.68,13.42084639]
[1718955928909,75.34,131.69,131.68,13.42084639]
[1718955930028,30.0,131.69,131.68,13.42084639]
[1718955930338,75.17,131.69,131.68,13.42084639]
[1718955930540,71.46171531,131.69,131.68,13.42084639]
[1718955930745,75.34,131.69,131.68,13.42084639]
[1718955931031,30.0,131.69,131.68,13.42084639]
[1718955931640,75.34,131.69,131.68,13.42084639]
[1718955932133,41.46171531,131.65,131.6,0.8170053]
[1718955932335,30.0,131.63,131.6,0.8170053]
[1718955932635,30.0,131.63,131.56,14.4034765]
[1718955932833,45.17,131.62,131.56,14.4034765]
[1718955933329,30.0,131.63,131.56,14.4034765]
[1718955933913,71.46171531,131.63,131.56,14.4034765]
[1718955934117,45.0,131.62,131.56,14.4034765]
[1718955934334,0.17,131.61,131.56,14.4034765]
[1718955934543,45.34,131.61,131.56,14.4034765]
[1718955934743,0.17,131.61,131.56,14.4034765]
[1718955934919,30.0,131.63,131.56,14.4034765]
[1718955935230,30.0,131.61,131.56,14.4034765]
[1718955937634,30.0,131.61,131.55,6.6268]
[1718955939416,30.0,131.61,131.56,20.0]
[1718955939940,76.26176305,131.63,131.56,20.0]
[1718955940144,20.69918786,131.67,131.55,6.6268]
[1718955940317,76.26176305,131.65,131.55,6.6268]
[1718955940520,76.26176305,131.66,131.55,6.6268]
[1718955940717,0.17,131.65,131.56,20.0]
[1718955940937,1.74778874,131.65,131.56,20.0]
[1718955941320,1.74778874,131.65,131.57,15.0937]
[1718955946055,1.74778874,131.65,131.58,6.3537]
[1718955946254,7.8174045,131.68,131.59,20.0]
[1718955946545,7.82800705,131.72,131.59,49.16]
[1718955946752,1.74778874,131.71,131.59,49.16]
[1718955947051,1.74778874,131.71,131.6,22.3101]
[1718955947360,1.74778874,131.71,131.63,16.1853]
[1718955947554,1.74778874,131.71,131.64,20.0]
[1718955947856,1.74778874,131.71,131.63,16.1853]
[1718955948038,12.92219928,131.71,131.63,16.1853]
[1718955948245,1.74778874,131.71,131.63,16.1853]
[1718955948447,1.74778874,131.71,131.61,49.16]
[1718955948448,1.74778874,131.71,131.64,6.1837]
[1718955948755,1.74778874,131.71,131.65,35.8297]
[1718955948925,6.28836175,131.81,131.66,29.16]
[1718955949130,11.17441054,131.76,131.66,29.16]
[1718955949646,6.50792458,131.84,131.65,58.5697]
[1718955949846,11.17441054,131.81,131.66,12.2106]
[1718955950163,11.17441054,131.79,131.67,20.0]
[1718955950550,65.62,131.83,131.67,20.0]
[1718955950845,11.17441054,131.79,131.67,20.0]
[1718955951028,11.17441054,131.8,131.67,26.0757]
[1718955951350,1.70169885,131.79,131.67,26.0757]
[1718955951552,22.34882108,131.76,131.67,20.0]
[1718955951752,12.87610939,131.75,131.66,6.1345]
[1718955951958,1.70169885,131.74,131.66,6.1345]
[1718955953968,1.70169885,131.74,131.66,12.2104]
[1718955954172,1.70169885,131.74,131.67,20.0]
[1718955956537,7.83115969,131.8,131.67,20.0]
[1718955956738,47.08802151,131.79,131.67,20.0]
[1718955956938,1.74802151,131.78,131.67,20.0]
[1718955957247,0.17,131.77,131.67,20.0]
[1718955957633,1.74802151,131.78,131.67,42.74]
[1718955957838,1.74802151,131.78,131.67,48.8157]
[1718955958042,1.74802151,131.78,131.68,16.438]
[1718955958240,1.74802151,131.78,131.69,20.0]
[1718955959144,0.17,131.77,131.69,20.0]
[1718955959356,0.34,131.77,131.69,20.0]
[1718955960160,1.74802151,131.78,131.69,20.0]
[1718955960758,1.74802151,131.78,131.7,6.3069]
[1718955960935,1.74802151,131.78,131.7,12.381]
[1718955961136,1.74802151,131.78,131.72,16.2818]
[1718955961336,1.74802151,131.78,131.74,6.3069]
[1718955961742,43.26176699,131.84,131.74,6.3069]
[1718955962037,43.26176699,131.8,131.74,6.3069]
[1718955962238,93.54104563,131.86,131.74,6.3069]
[1718955962453,93.54104563,131.86,131.72,16.2818]
[1718955962454,43.26176699,131.79,131.72,16.2818]
[1718955962637,66.8288,131.84,131.72,16.2818]
[1718955963160,0.17,131.83,131.72,16.2818]
[1718955963339,43.26176699,131.81,131.72,16.2818]
[1718955963659,43.26176699,131.79,131.72,16.2818]
[1718955963848,0.34,131.8,131.72,16.2818]
[1718955964048,0.17,131.8,131.72,16.2818]
[1718955964242,86.52353398,131.77,131.72,16.2818]
[1718955964444,1.91778874,131.8,131.72,16.2818]
[1718955964637,30.0,131.74,131.72,16.2818]
[1718955965137,30.0,131.74,131.7,6.5849]
[1718955965336,30.0,131.74,131.67,6.3301]
[1718955965553,45.17,131.73,131.67,6.3301]
[1718955965857,45.17,131.73,131.63,21.5866]
[1718955965858,43.26176699,131.71,131.63,21.5866]
[1718955966058,90.0097885,131.7,131.63,21.5866]
[1718955966272,0.17,131.69,131.63,21.5866]
[1718955966746,67.63953912,131.69,131.63,21.5866]
[1718955966946,48.98976956,131.69,131.63,21.5866]
[1718955967136,30.0,131.69,131.63,21.5866]
[1718955972463,1.74802151,131.7,131.63,21.5866]
[1718955973038,30.0,131.68,131.63,21.5866]
[1718955973848,0.17,131.67,131.63,21.5866]
[1718955974047,30.17,131.67,131.63,21.5866]
[1718955975342,30.17,131.67,131.63,15.2565]
[1718955975541,30.17,131.67,131.6,6.5286]
[1718955975542,45.0,131.66,131.6,22.1548]
[1718955975745,30.0,131.65,131.6,22.1548]
[1718955976246,45.0,131.64,131.6,22.1548]
[1718955977080,30.0,131.63,131.6,22.1548]
[1718955977285,30.0,131.63,131.6,15.6262]
[1718955978251,30.0,131.63,131.57,22.3327]
[1718955980453,31.1671066,131.7,131.57,22.3327]
[1718955980660,1.74778874,131.69,131.57,22.3327]
[1718955981354,0.17,131.68,131.57,22.3327]
[1718955981670,0.34,131.68,131.57,22.3327]
[1718955981876,65.96,131.68,131.57,22.3327]
[1718955982182,30.0,131.61,131.57,22.3327]
[1718955985478,30.0,131.61,131.57,16.2897]
[1718955985987,0.17,131.6,131.57,16.2897]
[1718955986274,0.17,131.6,131.52,0.8278858]
[1718955986275,1.74778874,131.59,131.52,0.8278858]
[1718955986481,1.74778874,131.59,131.5,10.0]
[1718955986482,22.3673,131.58,131.5,10.0]
[1718955986659,22.3673,131.58,131.38,6.4814]
[1718955986660,0.17,131.57,131.38,6.4814]
[1718955986862,100.0,131.49,131.38,6.4814]
[1718955987061,100.0,131.47,131.38,6.4814]
[1718955987372,45.17,131.46,131.38,6.4814]
[1718955987570,145.34,131.46,131.38,6.4814]
[1718955987775,30.0,131.48,131.38,6.4814]
[1718955988154,30.0,131.45,131.38,6.4814]
[1718955988561,0.34,131.47,131.38,6.4814]
[1718955989093,200.0,131.54,131.38,12.5704]
[1718955989385,100.0,131.49,131.38,6.4814]
[1718955989571,100.0,131.48,131.38,6.4814]
[1718955989776,45.17,131.47,131.38,6.4814]
[1718955990676,0.17,131.46,131.38,6.4814]
[1718955991068,100.0,131.51,131.38,6.4814]
[1718955991392,100.0,131.49,131.38,6.4814]
[1718955991575,165.17,131.48,131.38,6.4814]
[1718955991775,0.17,131.47,131.38,6.4814]
[1718955992178,100.0,131.46,131.38,6.4814]
[1718955992367,30.0,131.44,131.38,6.4814]
[1718955993260,30.0,131.44,131.37,16.1051]
[1718955993261,100.0,131.43,131.37,16.1051]
[1718955993460,100.0,131.42,131.34,0.8170053]
[1718955993671,100.0,131.45,131.34,0.8170053]
[1718955993872,16.1245,131.48,131.34,0.8170053]
[1718955993873,100.0,131.41,131.34,0.8170053]
[1718955994078,200.0,131.43,131.34,0.8170053]
[1718955994283,0.17,131.42,131.34,0.8170053]
[1718955994861,100.0,131.41,131.34,0.8170053]
[1718955995081,45.0,131.41,131.34,0.8170053]
[1718955995283,0.34,131.41,131.34,0.8170053]
[1718955995460,100.34,131.41,131.34,0.8170053]
[1718955995791,175.34,131.41,131.34,0.8170053]
[1718955997303,175.34,131.41,131.4,9.7592619]
[1718955997969,30.0,131.41,131.4,9.7592619]
[1718955999571,30.34,131.41,131.4,9.7592619]
[1718955999894,230.17,131.41,131.4,9.7592619]
[1718956000108,275.34,131.41,131.4,9.7592619]
[1718956000470,175.34,131.41,131.4,9.7592619]
[1718956000795,75.34,131.41,131.4,9.7592619]
[1718956001002,30.34,131.41,131.4,9.7592619]
[1718956001199,30.17,131.41,131.4,9.7592619]
[1718956001499,30.0,131.41,131.4,9.7592619]
[1718956002181,7.8179623,131.43,131.4,9.7592619]
[1718956002582,0.17,131.42,131.4,9.7592619]
[1718956002795,245.17,131.42,131.4,9.7592619]
[1718956002992,245.34,131.42,131.4,9.7592619]
[1718956003673,1.7475583,131.41,131.4,9.7592619]
[1718956003873,216.4085,131.4,131.34,0.8170053]
[1718956004074,46.9175583,131.39,131.34,0.08464]
[1718956004299,1.9175583,131.38,131.34,0.08464]
[1718956004670,0.17,131.37,131.34,0.08464]
[1718956005910,1.7475583,131.36,131.34,0.08464]
[1718956006976,100.0,131.4,131.34,0.08464]
[1718956007199,1.7475583,131.39,131.34,0.08464]
[1718956008595,101.7475583,131.39,131.34,0.08464]
[1718956009289,100.0,131.37,131.34,0.08464]
[1718956009487,45.0,131.36,131.34,0.08464]
[1718956009685,0.34,131.35,131.34,0.08464]
[1718956010179,101.7475583,131.39,131.34,0.08464]
[1718956010380,45.34,131.38,131.34,0.08464]
[1718956010780,101.74733015,131.37,131.34,0.08464]
[1718956011005,45.0,131.36,131.34,0.08464]
[1718956011310,45.0,131.36,131.26,16.0446858]
[1718956011311,100.0,131.35,131.26,16.0446858]
[1718956011603,100.17,131.35,131.26,16.0446858]
[1718956011819,100.0,131.33,131.26,16.0446858]
[1718956012120,45.0,131.32,131.26,15.5446858]
[1718956012282,0.17,131.31,131.26,0.3278858]
[1718956012792,1.74733015,131.34,131.26,0.3278858]
[1718956013412,0.17,131.33,131.26,0.3278858]
[1718956013707,1.74733015,131.32,131.26,0.3278858]
[1718956013917,0.17,131.31,131.26,0.3278858]
[1718956014219,0.34,131.31,131.26,0.3278858]
[1718956014396,0.17,131.31,131.26,0.3278858]
[1718956015097,1.74733015,131.32,131.26,0.3278858]
[1718956015902,1.74733015,131.32,131.26,20.3278858]
[1718956016296,107.8258483,131.38,131.26,20.3278858]
[1718956016500,107.8258483,131.38,131.27,6.6249]
[1718956016910,1.74733015,131.37,131.27,6.6249]
[1718956018089,1.74733015,131.37,131.28,20.0]
[1718956019304,101.74733015,131.37,131.28,20.0]
[1718956019619,100.0,131.36,131.27,6.6249]
[1718956019792,145.0,131.35,131.27,6.6249]
[1718956020201,0.34,131.34,131.27,6.6249]
[1718956020596,45.0,131.35,131.27,6.6249]
[1718956020985,145.0,131.35,131.27,6.6249]
[1718956021191,0.34,131.34,131.27,6.6249]
[1718956021601,100.34,131.34,131.26,0.3278858]
[1718956021827,45.0,131.33,131.26,0.3278858]
[1718956022119,0.17,131.32,131.26,0.3278858]
[1718956022317,200.34,131.32,131.26,0.3278858]
[1718956022513,0.34,131.32,131.26,0.3278858]
[1718956023628,45.0,131.33,131.26,0.3278858]
[1718956023923,1.74733015,131.37,131.26,0.3278858]
[1718956024426,1.74733015,131.37,131.26,20.3278858]
[1718956024604,1.74733015,131.37,131.26,0.3278858]
[1718956025238,100.0,131.36,131.26,0.3278858]
[1718956025417,200.0,131.36,131.26,0.3278858]
[1718956026325,200.0,131.34,131.26,0.3278858]
[1718956026527,45.17,131.33,131.26,0.3278858]
[1718956026715,0.17,131.32,131.26,0.3278858]
[1718956026910,100.0,131.3,131.26,0.3278858]
[1718956027110,45.17,131.29,131.26,0.3278858]
[1718956027304,200.17,131.28,131.26,0.3278858]
[1718956027504,45.0,131.27,131.26,0.3278858]
[1718956027705,45.17,131.27,131.26,0.3278858]
[1718956027900,45.34,131.27,131.26,0.3278858]
[1718956028105,90.96,131.27,131.26,0.3278858]
[1718956028306,100.0,131.2,131.12,14.9255632]
[1718956028513,100.0,131.21,131.12,14.9255632]
[1718956028725,100.0,131.19,131.12,14.9255632]
[1718956028924,0.17,131.18,131.12,14.9255632]
[1718956029125,45.34,131.18,131.12,14.9255632]
[1718956030026,30.0,131.27,131.17,22.74]
[1718956030218,6.5823,131.34,131.16,33.97]
[1718956030429,7.79892811,131.3,131.15,6.2212]
[1718956030808,45.62,131.33,131.15,6.2212]
[1718956031027,7.80071055,131.29,131.16,6.0991]
[1718956031331,45.62,131.33,131.17,20.0]
[1718956031529,45.62,131.33,131.16,20.0]
[1718956031732,100.0,131.27,131.16,20.0]
[1718956032327,200.0,131.25,131.16,20.0]
[1718956032533,200.0,131.25,131.15,20.0]
[1718956033113,0.17,131.24,131.15,20.0]
[1718956033316,45.34,131.24,131.15,20.0]
[1718956033826,0.34,131.24,131.15,20.0]
[1718956034223,100.0,131.29,131.15,48.8397]
[1718956034421,100.0,131.29,131.16,22.74]
[1718956034621,100.0,131.29,131.17,42.74]
[1718956034822,100.0,131.29,131.17,48.8388]
[1718956035008,100.0,131.31,131.19,22.74]
[1718956035213,100.0,131.33,131.21,28.8543]
[1718956035409,6.5823,131.34,131.22,20.0]
[1718956035729,6.5823,131.34,131.22,48.8363]
[1718956036111,6.5823,131.34,131.23,6.096]
[1718956036331,6.5823,131.34,131.24,20.0]
[1718956036630,100.0,131.35,131.24,20.0]
[1718956036815,101.74733015,131.37,131.25,6.0952]
[1718956037009,101.74733015,131.37,131.26,20.0]
[1718956037207,101.74733015,131.37,131.24,42.74]
[1718956037639,1.74733015,131.37,131.24,48.8355]
[1718956037807,1.74733015,131.37,131.26,22.74]
[1718956038010,1.74733015,131.37,131.27,20.0]
[1718956038737,1.74733015,131.37,131.27,48.8341]
[1718956038915,1.74733015,131.37,131.27,42.74]
[1718956039124,1.74733015,131.37,131.28,22.74]
[1718956039430,6.2103,131.42,131.29,42.74]
[1718956039614,1.74733015,131.41,131.29,48.833]
[1718956039935,1.74733015,131.41,131.29,42.74]
[1718956040254,1.74733015,131.41,131.3,28.8866]
[1718956040535,1.74733015,131.41,131.31,20.0]
[1718956040922,201.74733015,131.41,131.31,20.0]
[1718956041122,100.0,131.39,131.31,20.0]
[1718956041345,101.74733015,131.41,131.31,20.0]
[1718956042042,201.74733015,131.41,131.31,20.0]
[1718956043243,0.34,131.4,131.31,20.0]
[1718956043537,100.0,131.39,131.3,6.1466]
[1718956043715,100.0,131.39,131.31,20.0]
[1718956043916,45.34,131.4,131.31,20.0]
[1718956044346,0.17,131.39,131.31,20.0]
[1718956045249,100.34,131.39,131.31,20.0]
[1718956045621,0.34,131.39,131.31,20.0]
[1718956046033,0.17,131.39,131.31,20.0]
[1718956046421,1.74733015,131.41,131.32,15.2861]
[1718956046624,0.17,131.4,131.33,20.0]
[1718956046919,1.74733015,131.41,131.33,20.0]
[1718956047132,101.74733015,131.41,131.33,20.0]
[1718956047316,201.74733015,131.41,131.33,20.0]
[1718956047516,1.74733015,131.4,131.33,20.0]
[1718956048122,0.17,131.39,131.33,20.0]
[1718956048331,0.34,131.39,131.33,20.0]
[1718956049027,100.0,131.38,131.32,15.2861]
[1718956049241,45.17,131.37,131.3,6.1466]
[1718956049756,0.17,131.37,131.3,6.1466]
[1718956050345,0.34,131.37,131.3,6.1466]
[1718956050732,45.34,131.37,131.3,6.1466]
[1718956051039,0.17,131.37,131.3,6.1466]
[1718956051245,1.74733015,131.38,131.3,6.1466]
[1718956051840,0.17,131.37,131.3,6.1466]
[1718956052141,0.34,131.37,131.3,6.1466]
[1718956052534,100.0,131.36,131.3,6.1466]
[1718956052853,100.0,131.34,131.26,6.6274]
[1718956053242,45.17,131.33,131.26,6.6274]
[1718956053439,0.17,131.32,131.26,6.6274]
[1718956053640,100.17,131.32,131.26,6.6274]